fUSD/lending_fUSD_20240425
["ID","MTS","AMOUNT","RATE_DAILY","PERIOD"]
[323488376,1714047046649,-500.0,0.00012173,2]
[323488377,1714047046658,-274.9919755,0.00012173,2]
[323488378,1714047046669,-225.0080245,0.00012173,2]
[323488379,1714047046679,-500.0,0.00012173,2]
[323488381,1714047046689,-457.73733079,0.00012173,2]
[323488382,1714047046833,-121.1586377,0.00012173,2]
[323488383,1714047046843,-1102.02713527,0.00012173,2]
[323488384,1714047046855,-390.10286473,0.00012173,2]
[323488385,1714047046865,-500.0,0.00012173,2]
[323488386,1714047046874,-334.3870736,0.00012173,2]
[323488387,1714047046883,-500.0,0.00012173,2]
[323488388,1714047046892,-270.25936863,0.00012173,2]
[323488389,1714047046901,-500.0,0.00012173,2]
[323488390,1714047047085,-500.0,0.00012173,2]
[323488391,1714047047096,-269.51372254,0.00012173,2]
[323488392,1714047047108,-230.48627746,0.00012173,2]
[323488393,1714047047118,-500.0,0.00012173,2]
[323488394,1714047047128,-500.0,0.00012173,2]
[323488395,1714047047137,-418.83786413,0.00012173,2]
[323488396,1714047047148,-81.16213587,0.00012173,2]
[323488397,1714047047159,-500.0,0.00012173,2]
[323488398,1714047047169,-57.68586413,0.00012173,2]
[323488399,1714047047181,-442.31413587,0.00012173,2]
[323488400,1714047047191,-500.0,0.00012173,2]
[323488401,1714047047200,-1190.21,0.00012173,2]
[323488402,1714047047209,-577.16902444,0.00012173,2]
[323488403,1714047047219,-500.0,0.00012173,2]
[323488404,1714047047228,-500.0,0.00012173,2]
[323488405,1714047047240,-500.0,0.00012173,2]
[323488406,1714047047254,-500.0,0.00012173,2]
[323488407,1714047047263,-500.0,0.00012173,2]
[323488408,1714047047273,-500.0,0.00012173,2]
[323488409,1714047047283,-765.63,0.00012173,2]
[323488410,1714047047292,-500.0,0.00012173,2]
[323488411,1714047047302,-500.0,0.00012173,2]
[323488412,1714047047312,-500.0,0.00012173,2]
[323488413,1714047047322,-909.29,0.00012173,2]
[323488414,1714047047332,-500.0,0.00012173,2]
[323488415,1714047047342,-500.0,0.00012173,2]
[323488416,1714047047351,-500.0,0.00012173,2]
[323488417,1714047047360,-500.0,0.00012173,2]
[323488418,1714047047369,-500.0,0.00012173,2]
[323488419,1714047047378,-500.0,0.00012173,2]
[323488420,1714047047388,-520.04490783,0.00012173,2]
[323488421,1714047047397,-500.0,0.00012173,2]
[323488422,1714047047406,-500.0,0.00012173,2]
[323488423,1714047047415,-500.0,0.00012173,2]
[323488424,1714047047425,-500.0,0.00012173,2]
[323488425,1714047047434,-969.3,0.00012173,2]
[323488426,1714047047443,-500.0,0.00012173,2]
[323488427,1714047047452,-500.0,0.00012173,2]
[323488428,1714047047461,-500.0,0.00012173,2]
[323488429,1714047047470,-577.86,0.00012173,2]
[323488430,1714047047479,-500.0,0.00012173,2]
[323488431,1714047047489,-500.0,0.00012173,2]
[323488432,1714047047501,-500.0,0.00012173,2]
[323488433,1714047047511,-500.0,0.00012173,2]
[323488434,1714047047520,-500.0,0.00012173,2]
[323488435,1714047047529,-500.0,0.00012173,2]
[323488436,1714047047538,-500.0,0.00012173,2]
[323488437,1714047047548,-500.0,0.00012173,2]
[323488438,1714047047557,-3506.41,0.00012173,2]
[323488439,1714047047566,-500.0,0.00012173,2]
[323488440,1714047047576,-1465.16,0.00012173,2]
[323488441,1714047047585,-500.0,0.00012173,2]
[323488442,1714047047595,-592.72672559,0.00012173,2]
[323488443,1714047047604,-500.0,0.00012173,2]
[323488444,1714047047613,-500.0,0.00012173,2]
[323488445,1714047047623,-500.0,0.00012173,2]
[323488446,1714047047632,-500.0,0.00012173,2]
[323488447,1714047047641,-1346.08,0.00012173,2]
[323488448,1714047047651,-500.0,0.00012173,2]
[323488449,1714047047660,-16791.44,0.00012173,2]
[323488450,1714047047670,-1877.09,0.00012173,2]
[323488451,1714047047680,-500.0,0.00012173,2]
[323488452,1714047047689,-500.0,0.00012173,2]
[323488453,1714047047699,-500.0,0.00012173,2]
[323488454,1714047047708,-500.0,0.00012173,2]
[323488455,1714047047718,-500.0,0.00012173,2]
[323488456,1714047047727,-500.0,0.00012173,2]
[323488457,1714047047736,-500.0,0.00012173,2]
[323488458,1714047047746,-3607.78,0.00012173,2]
[323488459,1714047047756,-613.59287999,0.00012173,2]
[323488460,1714047047768,-805.09712001,0.00012173,2]
[323488461,1714047047777,-500.0,0.00012173,2]
[323488462,1714047047787,-369.3724,0.00012173,2]
[323488463,1714047047807,-130.6276,0.00012173,2]
[323488464,1714047047816,-489.5684599,0.00012173,2]
[323488465,1714047047828,-10.4315401,0.00012173,2]
[323488466,1714047047839,-394.05076803,0.00012173,2]
[323488467,1714047047851,-634.61923197,0.00012173,2]
[323488468,1714047047861,-2556.12,0.00012173,2]
[323488469,1714047047872,-500.0,0.00012173,2]
[323488470,1714047047883,-500.0,0.00012173,2]
[323488471,1714047047893,-500.0,0.00012173,2]
[323488472,1714047047903,-500.0,0.00012173,2]
[323488473,1714047047913,-500.0,0.00012173,2]
[323488474,1714047047922,-500.0,0.00012173,2]
[323488475,1714047047931,-500.0,0.00012173,2]
[323488476,1714047047940,-504.59,0.00012173,2]
[323488477,1714047047949,-500.0,0.00012173,2]
[323488478,1714047047959,-500.0,0.00012173,2]
[323488479,1714047047968,-500.0,0.00012173,2]
[323488480,1714047047978,-500.0,0.00012173,2]
[323488481,1714047047987,-500.0,0.00012173,2]
[323488482,1714047047996,-500.0,0.00012173,2]
[323488483,1714047048005,-1203.87,0.00012173,2]
[323488484,1714047048014,-500.0,0.00012173,2]
[323488485,1714047048023,-500.0,0.00012173,2]
[323488486,1714047048032,-500.0,0.00012173,2]
[323488487,1714047048042,-278.29,0.00012173,2]
[323488488,1714047048052,-500.0,0.00012173,2]
[323488489,1714047048061,-172.44193279,0.00012247,2]
[323488490,1714047048070,-10000.0,0.00012251,2]
[323488491,1714047048079,-500.0,0.00012255,2]
[323488492,1714047048090,-500.0,0.0001226,2]
[323488493,1714047048099,-500.0,0.0001226,2]
[323488494,1714047048109,-500.0,0.0001226,2]
[323488495,1714047048118,-500.0,0.0001226,2]
[323488496,1714047048127,-500.0,0.0001226,2]
[323488497,1714047048138,-500.0,0.0001226,2]
[323488498,1714047048147,-500.0,0.0001226,2]
[323488499,1714047048157,-505.58,0.0001226,2]
[323488500,1714047048167,-500.0,0.0001226,2]
[323488501,1714047048176,-500.0,0.0001226,2]
[323488502,1714047048185,-500.0,0.0001226,2]
[323488503,1714047048195,-427.15756328,0.0001226,2]
[323488504,1714047048206,-500.0,0.0001226,2]
[323488505,1714047048215,-500.0,0.00012261,2]
[323488506,1714047048225,-500.0,0.00012261,2]
[323488507,1714047048234,-500.0,0.00012261,2]
[323488508,1714047048246,-500.0,0.00012261,2]
[323488509,1714047048255,-500.0,0.00012261,2]
[323488510,1714047048264,-500.0,0.00012261,2]
[323488511,1714047048274,-500.0,0.00012261,2]
[323488512,1714047048283,-500.0,0.00012261,2]
[323488513,1714047048292,-500.0,0.00012261,2]
[323488514,1714047048301,-500.0,0.00012261,2]
[323488515,1714047048311,-500.0,0.00012261,2]
[323488516,1714047048323,-500.0,0.00012261,2]
[323488517,1714047048333,-500.0,0.00012261,2]
[323488518,1714047048342,-500.0,0.00012261,2]
[323488519,1714047048351,-500.0,0.00012261,2]
[323488520,1714047048360,-500.0,0.00012261,2]
[323488521,1714047048369,-500.0,0.00012261,2]
[323488522,1714047048378,-500.0,0.00012261,2]
[323488523,1714047048389,-514.22887567,0.00012261,2]
[323488524,1714047048398,-500.0,0.00012261,2]
[323488525,1714047048408,-500.0,0.00012261,2]
[323488526,1714047048417,-500.0,0.00012261,2]
[323488527,1714047048426,-500.0,0.00012261,2]
[323488528,1714047048436,-500.0,0.00012261,2]
[323488529,1714047048444,-500.0,0.00012261,2]
[323488530,1714047048454,-500.0,0.00012261,2]
[323488531,1714047048463,-500.0,0.00012261,2]
[323488532,1714047048472,-509.70872684,0.00012261,2]
[323488533,1714047048482,-500.0,0.00012261,2]
[323488534,1714047048492,-500.0,0.00012261,2]
[323488535,1714047048504,-500.0,0.00012261,2]
[323488536,1714047048512,-633.57680109,0.00012261,2]
[323488537,1714047048521,-480.85361685,0.00012261,2]
[323488538,1714047048530,-500.0,0.00012261,2]
[323488539,1714047048539,-598.81346895,0.00012261,2]
[323488540,1714047048548,-500.0,0.00012261,2]
[323488541,1714047048558,-500.0,0.00012261,2]
[323488542,1714047048567,-500.0,0.00012261,2]
[323488543,1714047048576,-500.0,0.00012261,2]
[323488544,1714047048585,-500.0,0.00012261,2]
[323488545,1714047048594,-500.0,0.00012261,2]
[323488546,1714047048603,-500.0,0.00012261,2]
[323488547,1714047048612,-500.0,0.00012261,2]
[323488548,1714047048621,-500.0,0.00012262,2]
[323488549,1714047048630,-500.0,0.00012262,2]
[323488550,1714047048641,-374.18,0.00012438,2]
[323488551,1714047048651,-189.06,0.0001244,2]
[323488552,1714047048660,-300.0,0.00012445,2]
[323488553,1714047048670,-300.0,0.00012445,2]
[323488554,1714047048679,-300.0,0.00012445,2]
[323488555,1714047048689,-300.0,0.00012445,2]
[323488556,1714047048698,-500.0,0.00012446,2]
[323488557,1714047048707,-500.0,0.00012446,2]
[323488558,1714047048716,-2577.16,0.00012446,2]
[323488559,1714047048725,-500.0,0.00012446,2]
[323488560,1714047048734,-500.0,0.00012446,2]
[323488561,1714047048743,-500.0,0.00012446,2]
[323488562,1714047048754,-1800.51,0.00012446,2]
[323488563,1714047048763,-500.0,0.00012446,2]
[323488564,1714047048773,-623.63,0.00012446,2]
[323488565,1714047048781,-4304.59,0.00012446,2]
[323488566,1714047048791,-611.46,0.00012446,2]
[323488567,1714047048802,-1029.93,0.00012446,2]
[323488568,1714047048811,-500.0,0.00012446,2]
[323488569,1714047048820,-500.0,0.00012446,2]
[323488570,1714047048830,-500.0,0.00012446,2]
[323488571,1714047048841,-500.0,0.00012446,2]
[323488572,1714047048851,-10278.35,0.00012446,2]
[323488573,1714047048860,-500.0,0.00012446,2]
[323488574,1714047048871,-2376.62,0.00012446,2]
[323488575,1714047048881,-399.69976321,0.00012446,2]
[323488576,1714047048890,-500.0,0.00012446,2]
[323488577,1714047048900,-500.0,0.00012446,2]
[323488578,1714047048909,-4022.26,0.00012446,2]
[323488579,1714047048918,-500.0,0.00012446,2]
[323488580,1714047048927,-500.0,0.00012446,2]
[323488581,1714047048936,-4277.92,0.00012446,2]
[323488582,1714047048945,-1413.01,0.00012446,2]
[323488583,1714047048954,-500.0,0.00012446,2]
[323488584,1714047048963,-1599.68,0.00012446,2]
[323488585,1714047048972,-2548.1,0.00012446,2]
[323488586,1714047048981,-500.0,0.00012446,2]
[323488587,1714047048990,-500.0,0.00012446,2]
[323488588,1714047049002,-500.0,0.00012446,2]
[323488589,1714047049011,-571.43,0.00012446,2]
[323488590,1714047049020,-500.0,0.00012446,2]
[323488591,1714047049029,-500.0,0.00012446,2]
[323488592,1714047049039,-82.46973207,0.00012446,2]
[323488593,1714047049051,-417.53026793,0.00012446,2]
[323488594,1714047049061,-13.80121187,0.00012446,2]
[323488595,1714047049073,-7528.2999,0.00012446,2]
[323488596,1714047049084,-291.82741276,0.00012446,2]
[323488597,1714047049103,-7846.44147537,0.00012446,2]
[323488598,1714047049112,-500.0,0.00012446,2]
[323488599,1714047049121,-5249.74,0.00012446,2]
[323488600,1714047049130,-1528.45,0.00012446,2]
[323488601,1714047049139,-500.0,0.00012446,2]
[323488602,1714047049149,-500.0,0.00012446,2]
[323488603,1714047049158,-1181.11,0.00012446,2]
[323488604,1714047049167,-500.0,0.00012446,2]
[323488605,1714047049177,-500.0,0.00012446,2]
[323488606,1714047049186,-500.0,0.00012446,2]
[323488607,1714047049195,-500.0,0.00012446,2]
[323488608,1714047049204,-300.0,0.00012446,2]
[323488609,1714047049213,-300.0,0.00012446,2]
[323488610,1714047049224,-300.0,0.00012446,2]
[323488611,1714047049235,-367.76693187,0.00012446,2]
[323488612,1714047049244,-500.0,0.00012447,2]
[323488613,1714047049256,-500.0,0.00012447,2]
[323488614,1714047049266,-500.0,0.00012447,2]
[323488615,1714047049277,-360.75,0.00012447,2]
[323488616,1714047049286,-500.0,0.00012447,2]
[323488617,1714047049295,-500.0,0.00012447,2]
[323488618,1714047049304,-500.0,0.00012447,2]
[323488619,1714047049314,-500.0,0.00012447,2]
[323488620,1714047049323,-500.0,0.00012447,2]
[323488621,1714047049333,-500.0,0.00012447,2]
[323488622,1714047049342,-383.59159474,0.00012447,2]
[323488623,1714047049351,-500.0,0.00012447,2]
[323488624,1714047049360,-202.52,0.00012447,2]
[323488625,1714047049369,-500.0,0.00012447,2]
[323488626,1714047049378,-500.0,0.00012447,2]
[323488627,1714047049387,-500.0,0.00012447,2]
[323488628,1714047049396,-500.0,0.00012447,2]
[323488629,1714047049406,-500.0,0.00012447,2]
[323488630,1714047049415,-641.85,0.00012447,2]
[323488631,1714047049424,-500.0,0.00012447,2]
[323488632,1714047049434,-500.0,0.00012447,2]
[323488633,1714047049443,-500.0,0.00012447,2]
[323488634,1714047049452,-500.0,0.00012447,2]
[323488635,1714047049461,-363.62,0.00012447,2]
[323488636,1714047049470,-500.0,0.00012447,2]
[323488637,1714047049479,-539.2259516,0.00012447,2]
[323488638,1714047049488,-500.0,0.00012447,2]
[323488639,1714047049498,-500.0,0.00012447,2]
[323488640,1714047049508,-500.0,0.00012447,2]
[323488641,1714047049517,-500.0,0.00012447,2]
[323488642,1714047049526,-500.0,0.00012447,2]
[323488643,1714047049535,-500.0,0.00012447,2]
[323488644,1714047049544,-500.0,0.00012447,2]
[323488645,1714047049553,-500.0,0.00012447,2]
[323488646,1714047049562,-500.0,0.00012447,2]
[323488647,1714047049571,-500.0,0.00012447,2]
[323488648,1714047049581,-500.0,0.00012447,2]
[323488649,1714047049590,-500.0,0.00012447,2]
[323488650,1714047049599,-500.0,0.00012447,2]
[323488651,1714047049607,-500.0,0.00012447,2]
[323488652,1714047049616,-500.0,0.00012447,2]
[323488653,1714047049625,-500.0,0.00012447,2]
[323488654,1714047049634,-500.0,0.00012447,2]
[323488655,1714047049644,-500.0,0.00012447,2]
[323488656,1714047049653,-500.0,0.00012447,2]
[323488657,1714047049663,-500.0,0.00012447,2]
[323488658,1714047049672,-500.0,0.00012447,2]
[323488659,1714047049681,-500.0,0.00012447,2]
[323488660,1714047049690,-500.0,0.00012447,2]
[323488661,1714047049699,-500.0,0.00012447,2]
[323488662,1714047049708,-500.0,0.00012447,2]
[323488663,1714047049717,-500.0,0.00012447,2]
[323488664,1714047049726,-500.0,0.00012447,2]
[323488665,1714047049735,-500.0,0.00012447,2]
[323488666,1714047049745,-500.0,0.00012447,2]
[323488667,1714047049754,-500.0,0.00012447,2]
[323488668,1714047049763,-500.0,0.00012447,2]
[323488669,1714047049772,-500.0,0.00012447,2]
[323488670,1714047049781,-500.0,0.00012447,2]
[323488671,1714047049790,-500.0,0.00012447,2]
[323488672,1714047049800,-500.0,0.00012447,2]
[323488673,1714047049811,-500.0,0.00012447,2]
[323488674,1714047049820,-500.0,0.00012447,2]
[323488675,1714047049830,-500.0,0.00012447,2]
[323488676,1714047049839,-500.0,0.00012447,2]
[323488677,1714047049849,-500.0,0.00012447,2]
[323488678,1714047049858,-500.0,0.00012447,2]
[323488679,1714047049869,-500.0,0.00012447,2]
[323488680,1714047049878,-500.0,0.00012447,2]
[323488681,1714047049887,-500.0,0.00012447,2]
[323488682,1714047049896,-500.0,0.00012447,2]
[323488683,1714047049905,-500.0,0.00012447,2]
[323488684,1714047049914,-822.72,0.00012447,2]
[323488685,1714047049923,-500.0,0.00012447,2]
[323488686,1714047049932,-500.0,0.00012447,2]
[323488687,1714047049941,-500.0,0.00012447,2]
[323488688,1714047049951,-500.0,0.00012447,2]
[323488689,1714047049960,-1492.13,0.00012447,2]
[323488690,1714047049969,-500.0,0.00012447,2]
[323488691,1714047049978,-431.93,0.00012447,2]
[323488692,1714047049987,-500.0,0.00012447,2]
[323488693,1714047049997,-500.0,0.00012447,2]
[323488694,1714047050006,-500.0,0.00012447,2]
[323488695,1714047050014,-500.0,0.00012447,2]
[323488696,1714047050023,-500.0,0.00012447,2]
[323488697,1714047050032,-500.0,0.00012447,2]
[323488698,1714047050041,-500.0,0.00012447,2]
[323488699,1714047050050,-500.0,0.00012447,2]
[323488700,1714047050059,-500.0,0.00012447,2]
[323488701,1714047050068,-1190.21,0.00012447,2]
[323488702,1714047050077,-500.0,0.00012447,2]
[323488703,1714047050086,-500.0,0.00012447,2]
[323488704,1714047050095,-500.0,0.00012447,2]
[323488705,1714047050104,-500.0,0.00012447,2]
[323488706,1714047050113,-500.0,0.00012447,2]
[323488707,1714047050122,-522.83428785,0.00012447,2]
[323488708,1714047050132,-765.63,0.00012447,2]
[323488709,1714047050141,-500.0,0.00012447,2]
[323488710,1714047050150,-500.0,0.00012447,2]
[323488711,1714047050159,-500.0,0.00012447,2]
[323488712,1714047050168,-500.0,0.00012447,2]
[323488713,1714047050178,-500.0,0.00012447,2]
[323488714,1714047050188,-909.29,0.00012447,2]
[323488715,1714047050197,-500.0,0.00012447,2]
[323488716,1714047050206,-500.0,0.00012447,2]
[323488717,1714047050215,-500.0,0.00012447,2]
[323488718,1714047050225,-500.0,0.00012447,2]
[323488719,1714047050234,-500.0,0.00012447,2]
[323488720,1714047050246,-500.0,0.00012447,2]
[323488721,1714047050256,-500.0,0.00012447,2]
[323488722,1714047050266,-500.0,0.00012447,2]
[323488723,1714047050276,-969.3,0.00012447,2]
[323488724,1714047050285,-500.0,0.00012447,2]
[323488725,1714047050295,-500.0,0.00012447,2]
[323488726,1714047050304,-500.0,0.00012447,2]
[323488727,1714047050314,-577.86,0.00012447,2]
[323488728,1714047050324,-500.0,0.00012447,2]
[323488729,1714047050333,-500.0,0.00012447,2]
[323488730,1714047050342,-500.0,0.00012447,2]
[323488731,1714047050352,-500.0,0.00012447,2]
[323488732,1714047050361,-500.0,0.00012447,2]
[323488733,1714047050371,-500.0,0.00012447,2]
[323488734,1714047050380,-500.0,0.00012447,2]
[323488735,1714047050389,-500.0,0.00012447,2]
[323488736,1714047050399,-3506.41,0.00012447,2]
[323488737,1714047050409,-500.0,0.00012447,2]
[323488738,1714047050419,-1465.16,0.00012447,2]
[323488739,1714047050428,-500.0,0.00012447,2]
[323488740,1714047050437,-500.0,0.00012447,2]
[323488741,1714047050447,-500.0,0.00012447,2]
[323488742,1714047050457,-500.0,0.00012447,2]
[323488743,1714047050466,-500.0,0.00012447,2]
[323488744,1714047050476,-1346.08,0.00012447,2]
[323488745,1714047050486,-500.0,0.00012447,2]
[323488746,1714047050497,-16791.44,0.00012447,2]
[323488747,1714047050507,-1877.09,0.00012447,2]
[323488748,1714047050517,-500.0,0.00012447,2]
[323488749,1714047050527,-500.0,0.00012447,2]
[323488750,1714047050537,-500.0,0.00012447,2]
[323488751,1714047050547,-500.0,0.00012447,2]
[323488752,1714047050556,-500.0,0.00012447,2]
[323488753,1714047050566,-500.0,0.00012447,2]
[323488754,1714047050575,-500.0,0.00012447,2]
[323488755,1714047050585,-3607.78,0.00012447,2]
[323488756,1714047050594,-1418.69,0.00012447,2]
[323488757,1714047050603,-500.0,0.00012447,2]
[323488758,1714047050612,-500.0,0.00012447,2]
[323488759,1714047050621,-500.0,0.00012447,2]
[323488760,1714047050630,-1028.67,0.00012447,2]
[323488761,1714047050640,-2556.12,0.00012447,2]
[323488762,1714047050649,-500.0,0.00012447,2]
[323488763,1714047050659,-500.0,0.00012447,2]
[323488764,1714047050668,-500.0,0.00012447,2]
[323488765,1714047050677,-500.0,0.00012447,2]
[323488766,1714047050686,-500.0,0.00012447,2]
[323488767,1714047050696,-500.0,0.00012447,2]
[323488768,1714047050705,-500.0,0.00012447,2]
[323488769,1714047050714,-504.59,0.00012447,2]
[323488770,1714047050724,-500.0,0.00012447,2]
[323488771,1714047050733,-500.0,0.00012447,2]
[323488772,1714047050742,-500.0,0.00012447,2]
[323488773,1714047050753,-500.0,0.00012447,2]
[323488774,1714047050761,-500.0,0.00012447,2]
[323488775,1714047050770,-500.0,0.00012447,2]
[323488776,1714047050780,-1203.87,0.00012447,2]
[323488777,1714047050789,-500.0,0.00012447,2]
[323488778,1714047050798,-500.0,0.00012447,2]
[323488779,1714047050807,-500.0,0.00012447,2]
[323488780,1714047050817,-500.0,0.00012447,2]
[323488781,1714047050826,-4455.93261915,0.00012469,2]
[323488782,1714047050836,-320.92568388,0.00012477,2]
[323488783,1714047050845,-305.96145763,0.00012477,2]
[323488784,1714047050855,-210.61169573,0.00012477,2]
[323488785,1714047050864,-362.73502301,0.00012477,2]
[323488786,1714047050874,-350.28,0.00012479,2]
[323488787,1714047050883,-155.0,0.000125,2]
[323488788,1714047050892,-150.0,0.00012519,2]
[323488789,1714047050901,-300.0,0.00012524,2]
[323488790,1714047050910,-300.0,0.00012524,2]
[323488791,1714047050920,-300.0,0.00012524,2]
[323488792,1714047050929,-2706.0,0.00012525,2]
[323488793,1714047050939,-5894.0,0.00012525,2]
[323488794,1714047050949,-5730.0,0.00012525,2]
[323488795,1714047050958,-37696.0,0.00012525,2]
[323488796,1714047050967,-1055.0,0.00012525,2]
[323488797,1714047051162,-150.0,0.0001253,2]
[323488798,1714047051172,-500.0,0.00012534,2]
[323488799,1714047051181,-500.0,0.00012534,2]
[323488800,1714047051191,-500.0,0.00012534,2]
[323488801,1714047051201,-150.0,0.00012534,2]
[323488802,1714047051211,-500.0,0.00012534,2]
[323488803,1714047051221,-505.58,0.00012534,2]
[323488804,1714047051231,-500.0,0.00012534,2]
[323488805,1714047051247,-500.0,0.00012534,2]
[323488806,1714047051260,-500.0,0.00012534,2]
[323488807,1714047051271,-500.0,0.00012535,2]
[323488808,1714047051282,-500.0,0.00012535,2]
[323488809,1714047051292,-500.0,0.00012535,2]
[323488810,1714047051303,-500.0,0.00012535,2]
[323488811,1714047051313,-500.0,0.00012535,2]
[323488812,1714047051323,-500.0,0.00012535,2]
[323488813,1714047051334,-500.0,0.00012535,2]
[323488814,1714047051344,-500.0,0.00012535,2]
[323488815,1714047051354,-500.0,0.00012535,2]
[323488816,1714047051363,-500.0,0.00012535,2]
[323488817,1714047051374,-500.0,0.00012535,2]
[323488818,1714047051384,-500.0,0.00012535,2]
[323488819,1714047051394,-544.95,0.00012535,2]
[323488820,1714047051405,-500.0,0.00012535,2]
[323488821,1714047051416,-500.0,0.00012535,2]
[323488822,1714047051427,-500.0,0.00012535,2]
[323488823,1714047051437,-500.0,0.00012535,2]
[323488824,1714047051448,-500.0,0.00012535,2]
[323488825,1714047051458,-500.0,0.00012535,2]
[323488826,1714047051468,-500.0,0.00012535,2]
[323488827,1714047051478,-500.0,0.00012535,2]
[323488828,1714047051489,-500.0,0.00012535,2]
[323488829,1714047051502,-500.0,0.00012535,2]
[323488830,1714047051512,-500.0,0.00012535,2]
[323488831,1714047051521,-500.0,0.00012535,2]
[323488832,1714047051532,-537.7,0.00012535,2]
[323488833,1714047051542,-500.0,0.00012535,2]
[323488834,1714047051552,-500.0,0.00012535,2]
[323488835,1714047051562,-500.0,0.00012535,2]
[323488836,1714047051572,-150.0,0.00012571,2]
[323488837,1714047051583,-150.0,0.00012573,2]
[323488838,1714047051593,-150.0,0.00012576,2]
[323488839,1714047051603,-4455.93261915,0.00012577,2]
[323488840,1714047051612,-150.0,0.00012593,2]
[323488841,1714047051622,-150.0,0.00012595,2]
[323488842,1714047051632,-299.47078949,0.0001262,2]
[323488843,1714047051642,-150.0,0.00012636,2]
[323488844,1714047051652,-150.0,0.00012636,2]
[323488845,1714047051661,-150.0,0.00012646,2]
[323488846,1714047051671,-150.0,0.0001268,2]
[323488847,1714047051681,-4455.93261915,0.00012684,2]
[323488848,1714047051691,-150.0,0.00012691,2]
[323488849,1714047051701,-500.0,0.0001272,2]
[323488850,1714047051710,-500.0,0.0001272,2]
[323488851,1714047051720,-2577.16,0.0001272,2]
[323488852,1714047051730,-221.40017006,0.0001272,2]
[323488853,1714047051740,-500.0,0.0001272,2]
[323488854,1714047051753,-500.0,0.0001272,2]
[323488855,1714047051763,-1800.51,0.0001272,2]
[323488856,1714047051773,-500.0,0.0001272,2]
[323488857,1714047051782,-623.63,0.0001272,2]
[323488858,1714047051793,-4304.59,0.0001272,2]
[323488859,1714047051803,-611.46,0.0001272,2]
[323488860,1714047051813,-1029.93,0.0001272,2]
[323488861,1714047051823,-500.0,0.0001272,2]
[323488862,1714047051833,-500.0,0.0001272,2]
[323488863,1714047051843,-500.0,0.0001272,2]
[323488864,1714047051852,-500.0,0.0001272,2]
[323488865,1714047051861,-10278.35,0.0001272,2]
[323488866,1714047051871,-327.43,0.0001272,2]
[323488867,1714047051880,-2376.62,0.0001272,2]
[323488868,1714047051889,-500.0,0.0001272,2]
[323488869,1714047051899,-500.0,0.0001272,2]
[323488870,1714047051909,-4022.26,0.0001272,2]
[323488871,1714047051918,-500.0,0.0001272,2]
[323488872,1714047051928,-500.0,0.0001272,2]
[323488873,1714047051938,-4277.92,0.0001272,2]
[323488874,1714047051947,-1413.01,0.0001272,2]
[323488875,1714047051956,-448.8,0.0001272,2]
[323488876,1714047051966,-1599.68,0.0001272,2]